fUSD/lending_fUSD_20250223
["ID","MTS","AMOUNT","RATE_DAILY","PERIOD"]
[354143043,1740283836162,-506.3597971,0.00019769,3]
[354143044,1740283836171,-504.52516452,0.00019769,3]
[354143045,1740283836181,-514.29271785,0.00019769,3]
[354143046,1740283836191,-498.57169616,0.00019769,3]
[354143047,1740283836201,-509.74384159,0.00019769,3]
[354143048,1740283836210,-500.0,0.00019769,3]
[354143049,1740283836220,-507.76942646,0.00019769,3]
[354143050,1740283836230,-515.46352945,0.00019769,3]
[354143051,1740283836239,-504.97458054,0.00019769,3]
[354143052,1740283836249,-519.38079475,0.00019769,3]
[354143053,1740283836258,-509.86555299,0.00019769,3]
[354143054,1740283836268,-500.0,0.00019769,3]
[354143055,1740283836277,-513.66568089,0.00019769,3]
[354143056,1740283836287,-517.61973424,0.00019769,3]
[354143057,1740283836297,-503.5209075,0.00019769,3]
[354143058,1740283836306,-625.08747157,0.00019769,3]
[354143059,1740283836316,-512.09925467,0.00019769,3]
[354143060,1740283836325,-417.82047669,0.00019769,3]
[354143061,1740283836335,-500.0,0.00019769,3]
[354143062,1740283836344,-504.12351901,0.00019769,3]
[354143063,1740283836354,-514.49565877,0.00019769,3]
[354143064,1740283836363,-509.81445885,0.00019769,3]
[354143065,1740283836373,-507.92572911,0.00019769,3]
[354143066,1740283836382,-518.46931796,0.00019769,3]
[354143067,1740283836391,-506.08532244,0.00019769,3]
[354143068,1740283836401,-511.92968342,0.00019769,3]
[354143069,1740283836410,-500.0,0.00019769,3]
[354143070,1740283836419,-500.0,0.00019769,3]
[354143071,1740283836428,-150.0,0.00019769,2]
[354143072,1740283836437,-514.77456501,0.00019769,3]
[354143073,1740283836447,-559.5051278,0.00019769,3]
[354143074,1740283836457,-516.27476009,0.00019769,3]
[354143075,1740283836466,-518.96185514,0.00019769,3]
[354143076,1740283836475,-313.31911477,0.00019769,3]
[354143077,1740283836485,-611.68269498,0.00019769,3]
[354143078,1740283836495,-503.02537778,0.00019769,3]
[354143079,1740283836505,-501.37056168,0.00019769,3]
[354143080,1740283836514,-503.68389782,0.00019769,3]
[354143081,1740283836523,-549.77564762,0.00019769,3]
[354143082,1740283836533,-500.0,0.00019769,3]
[354143083,1740283836543,-338.37802245,0.00019769,3]
[354143084,1740283836553,-500.0,0.00019769,3]
[354143085,1740283836562,-500.0,0.00019769,3]
[354143086,1740283836573,-500.0,0.00019769,3]
[354143087,1740283836582,-500.0,0.00019769,3]
[354143088,1740283836592,-500.0,0.00019769,3]
[354143089,1740283836601,-500.0,0.00019769,3]
[354143090,1740283836610,-500.0,0.00019769,3]
[354143091,1740283836619,-500.0,0.00019769,3]
[354143092,1740283836629,-525.93,0.00019769,3]
[354143093,1740283836638,-500.0,0.00019769,3]
[354143094,1740283836648,-558.87471543,0.00019769,3]
[354143095,1740283836657,-639.78,0.00019769,3]
[354143096,1740283836666,-500.0,0.00019769,3]
[354143097,1740283836676,-500.0,0.00019769,3]
[354143098,1740283836685,-587.71,0.00019769,3]
[354143099,1740283836695,-621.81,0.00019769,3]
[354143100,1740283836704,-500.0,0.00019769,3]
[354143101,1740283836713,-500.0,0.00019769,3]
[354143102,1740283836722,-500.0,0.00019769,3]
[354143103,1740283836732,-509.57390701,0.00019769,3]
[354143104,1740283836746,-607.38,0.00019769,3]
[354143105,1740283836755,-1000.0,0.00019769,2]
[354143106,1740283836766,-500.0,0.00019769,3]
[354143107,1740283836775,-500.0,0.00019769,3]
[354143108,1740283836786,-500.0,0.00019769,3]
[354143109,1740283836796,-500.0,0.00019769,3]
[354143110,1740283836807,-500.0,0.00019769,3]
[354143111,1740283836816,-500.0,0.00019769,3]
[354143112,1740283836825,-500.0,0.00019769,3]
[354143113,1740283836835,-500.0,0.00019769,3]
[354143114,1740283836844,-500.0,0.00019769,3]
[354143115,1740283836854,-500.0,0.00019769,3]
[354143116,1740283836863,-500.0,0.00019769,3]
[354143117,1740283836873,-616.4,0.00019769,3]
[354143118,1740283836882,-500.0,0.00019769,3]
[354143119,1740283836892,-500.0,0.00019769,3]
[354143120,1740283836901,-511.10163197,0.00019769,3]
[354143121,1740283836912,-500.0,0.00019769,3]
[354143122,1740283836922,-500.0,0.00019769,3]
[354143123,1740283836931,-510.85006481,0.00019769,3]
[354143124,1740283836942,-500.42482158,0.00019769,3]
[354143125,1740283836951,-514.53730139,0.00019769,3]
[354143126,1740283836960,-500.0,0.00019769,3]
[354143127,1740283836970,-500.0,0.00019769,3]
[354143128,1740283836979,-500.0,0.00019769,3]
[354143129,1740283836988,-500.0,0.00019769,3]
[354143130,1740283836997,-507.04504018,0.00019769,3]
[354143131,1740283837006,-500.0,0.00019769,3]
[354143132,1740283837016,-500.0,0.00019769,3]
[354143133,1740283837025,-507.17264122,0.00019769,3]
[354143134,1740283837035,-497.22867616,0.00019769,3]
[354143135,1740283837044,-500.0,0.00019769,3]
[354143136,1740283837053,-500.0,0.00019769,3]
[354143137,1740283837062,-500.0,0.00019769,3]
[354143138,1740283837072,-500.0,0.00019769,3]
[354143139,1740283837081,-500.0,0.00019769,3]
[354143140,1740283837090,-500.0,0.00019769,3]
[354143141,1740283837099,-500.0,0.00019769,3]
[354143142,1740283837109,-500.0,0.00019769,3]
[354143143,1740283837118,-510.55380712,0.00019769,3]
[354143144,1740283837128,-510.48994981,0.00019769,3]
[354143145,1740283837137,-500.0,0.00019769,3]
[354143146,1740283837146,-508.78967873,0.00019769,3]
[354143147,1740283837156,-507.77297365,0.00019769,3]
[354143148,1740283837165,-511.86624083,0.00019769,3]
[354143149,1740283837174,-505.25965132,0.00019769,3]
[354143150,1740283837183,-523.09918347,0.00019769,3]
[354143151,1740283837193,-500.0,0.00019769,3]
[354143152,1740283837202,-500.0,0.00019769,3]
[354143153,1740283837214,-500.0,0.00019769,3]
[354143154,1740283837224,-500.0,0.00019769,3]
[354143155,1740283837233,-510.07185735,0.00019769,3]
[354143156,1740283837243,-511.44123925,0.00019769,3]
[354143157,1740283837251,-511.68421442,0.00019769,3]
[354143158,1740283837260,-501.970548,0.00019769,3]
[354143159,1740283837268,-516.95071935,0.00019769,3]
[354143161,1740283837278,-507.94575745,0.00019769,3]
[354143162,1740283837288,-529.53063799,0.00019769,3]
[354143163,1740283837299,-513.01824817,0.00019769,2]
[354143164,1740283837310,-1000.0,0.00019773,2]
[354143165,1740283837319,-150.0,0.00019773,4]
[354143166,1740283837328,-150.0,0.00019773,4]
[354143167,1740283837338,-150.0,0.00019779,2]
[354143168,1740283837347,-150.0,0.00019779,2]
[354143169,1740283837358,-1000.0,0.00019787,2]
[354143170,1740283837368,-12772.17289111,0.00019789,2]
[354143171,1740283837378,-2597.65506445,0.0001979,2]
[354143172,1740283837387,-550.43935059,0.0001979,2]
[354143173,1740283837663,-1396.33623647,0.0001979,2]
[354143174,1740283837672,-169.61560758,0.0001979,2]
[354143176,1740283837681,-7099.96455317,0.0001979,2]
[354143178,1740283837690,-150.0,0.000198,2]
[354143180,1740283837700,-165.04806518,0.000198,2]
[354143181,1740283837708,-20122.58822972,0.000198,7]
[354143182,1740283837718,-150.0,0.00019804,2]
[354143183,1740283837727,-150.0,0.00019809,2]
[354143184,1740283837737,-1000.0,0.00019811,2]
[354143185,1740283837746,-1000.0,0.00019813,2]
[354143186,1740283837755,-150.0,0.00019813,2]
[354143187,1740283837763,-150.0,0.00019815,2]
[354143188,1740283837771,-1000.0,0.00019817,2]
[354143189,1740283837780,-500.0,0.0001982,3]
[354143191,1740283837790,-501.14536124,0.0001982,3]
[354143193,1740283837800,-501.39451648,0.0001982,3]
[354143194,1740283837811,-500.0,0.0001982,3]
[354143195,1740283837822,-542.04722254,0.0001982,3]
[354143196,1740283837831,-500.0,0.0001982,3]
[354143197,1740283837840,-501.44117578,0.0001982,3]
[354143198,1740283837849,-500.81801237,0.0001982,3]
[354143199,1740283837858,-500.3435651,0.0001982,3]
[354143200,1740283837868,-222.64801957,0.0001982,3]
[354143201,1740283837876,-501.42451281,0.0001982,3]
[354143202,1740283837887,-500.0,0.0001982,3]
[354143203,1740283837896,-500.0,0.0001982,3]
[354143204,1740283837905,-501.25531082,0.0001982,3]
[354143205,1740283837914,-501.39347145,0.0001982,3]
[354143206,1740283837923,-500.0,0.0001982,3]
[354143207,1740283837932,-501.33977656,0.0001982,3]
[354143208,1740283837941,-502.55781847,0.0001982,3]
[354143209,1740283837950,-501.98779945,0.0001982,3]
[354143210,1740283837959,-506.58323284,0.0001982,3]
[354143211,1740283837968,-503.24302626,0.0001982,3]
[354143212,1740283837977,-500.0,0.0001982,3]
[354143213,1740283837987,-504.61610618,0.0001982,3]
[354143214,1740283837996,-501.77446823,0.0001982,3]
[354143215,1740283838005,-500.0,0.0001982,3]
[354143216,1740283838014,-501.27033302,0.0001982,3]
[354143217,1740283838023,-501.35871632,0.0001982,3]
[354143218,1740283838032,-500.0,0.0001982,3]
[354143219,1740283838041,-500.0,0.0001982,3]
[354143220,1740283838050,-500.98771842,0.0001982,3]
[354143221,1740283838059,-500.0,0.0001982,2]
[354143222,1740283838069,-501.45152959,0.0001982,3]
[354143223,1740283838078,-500.0,0.0001982,3]
[354143224,1740283838087,-500.90650468,0.0001982,3]
[354143225,1740283838096,-500.0,0.0001982,3]
[354143226,1740283838105,-500.30558635,0.0001982,3]
[354143227,1740283838114,-500.0,0.0001982,3]
[354143228,1740283838125,-500.68776631,0.0001982,3]
[354143229,1740283838134,-500.0,0.0001982,3]
[354143230,1740283838144,-255.21338832,0.0001982,3]
[354143231,1740283838154,-500.0,0.0001982,3]
[354143232,1740283838164,-500.0,0.0001982,3]
[354143233,1740283838174,-501.4570701,0.0001982,3]
[354143234,1740283838183,-500.0,0.0001982,3]
[354143235,1740283838193,-500.0,0.0001982,3]
[354143236,1740283838203,-500.62418507,0.0001982,3]
[354143237,1740283838212,-500.0,0.0001982,3]
[354143238,1740283838220,-502.2950565,0.0001982,3]
[354143239,1740283838229,-500.0,0.0001982,3]
[354143240,1740283838238,-503.73905419,0.0001982,3]
[354143241,1740283838247,-501.24402553,0.0001982,3]
[354143242,1740283838257,-500.0,0.0001982,3]
[354143243,1740283838266,-500.24787338,0.0001982,3]
[354143244,1740283838275,-500.0,0.0001982,3]
[354143245,1740283838284,-501.29510679,0.0001982,3]
[354143246,1740283838292,-509.26787673,0.0001982,3]
[354143247,1740283838302,-501.2297696,0.0001982,3]
[354143248,1740283838312,-500.36688492,0.0001982,3]
[354143249,1740283838321,-500.0,0.0001982,3]
[354143250,1740283838330,-500.6019269,0.0001982,3]
[354143251,1740283838339,-500.0,0.0001982,3]
[354143252,1740283838348,-501.69922396,0.0001982,3]
[354143253,1740283838357,-500.0,0.0001982,3]
[354143254,1740283838367,-500.0,0.0001982,3]
[354143255,1740283838377,-500.0,0.0001982,3]
[354143256,1740283838387,-501.6954697,0.0001982,3]
[354143257,1740283838399,-503.77537742,0.0001982,3]
[354143258,1740283838410,-500.0,0.0001982,3]
[354143259,1740283838420,-501.51278034,0.0001982,3]
[354143260,1740283838429,-509.82190148,0.0001982,3]
[354143261,1740283838439,-501.61832884,0.0001982,3]
[354143262,1740283838450,-500.0,0.0001982,3]
[354143263,1740283838459,-500.0,0.0001982,3]
[354143264,1740283838468,-503.044165,0.0001982,3]
[354143265,1740283838477,-501.50602488,0.0001982,3]
[354143266,1740283838486,-500.0,0.0001982,3]
[354143267,1740283838496,-508.18531379,0.0001982,3]
[354143268,1740283838505,-501.87906423,0.0001982,3]
[354143269,1740283838514,-500.2952603,0.0001982,3]
[354143270,1740283838523,-501.4285939,0.0001982,3]
[354143271,1740283838532,-500.56391842,0.0001982,3]
[354143272,1740283838542,-500.83468949,0.0001982,3]
[354143273,1740283838552,-503.11918321,0.0001982,3]
[354143274,1740283838562,-500.83750814,0.0001982,3]
[354143275,1740283838571,-536.21792818,0.0001982,3]
[354143276,1740283838580,-500.0,0.0001982,3]
[354143277,1740283838589,-500.0,0.0001982,3]
[354143278,1740283838598,-500.0,0.0001982,3]
[354143279,1740283838607,-500.49244536,0.0001982,3]
[354143280,1740283838615,-456.04080611,0.0001982,3]
[354143281,1740283838624,-501.23571252,0.0001982,3]
[354143282,1740283838635,-509.21194812,0.0001982,3]
[354143283,1740283838643,-500.0,0.0001982,3]
[354143284,1740283838652,-502.68242192,0.0001982,3]
[354143285,1740283838661,-511.17351284,0.0001982,3]
[354143286,1740283838670,-501.82373107,0.0001982,3]
[354143287,1740283838680,-500.0,0.0001982,3]
[354143288,1740283838690,-510.16539932,0.0001982,3]
[354143289,1740283838701,-500.55336409,0.0001982,3]
[354143290,1740283838711,-500.0,0.0001982,3]
[354143291,1740283838721,-502.99331841,0.0001982,3]
[354143292,1740283838732,-500.0,0.0001982,3]
[354143293,1740283838745,-499.99578014,0.0001982,3]
[354143294,1740283838754,-501.8917317,0.0001982,3]
[354143295,1740283838764,-517.01837384,0.0001982,3]
[354143296,1740283838773,-506.92006296,0.0001982,3]
[354143297,1740283838783,-501.3910612,0.0001982,3]
[354143298,1740283838792,-500.93664598,0.0001982,3]
[354143299,1740283838801,-500.77252978,0.0001982,3]
[354143300,1740283838811,-534.24772018,0.0001982,3]
[354143301,1740283838820,-500.0,0.0001982,3]
[354143302,1740283838829,-500.0,0.0001982,3]
[354143303,1740283838838,-162.46890745,0.0001982,3]
[354143304,1740283838848,-505.64702315,0.0001982,3]
[354143305,1740283838857,-520.74496212,0.0001982,3]
[354143306,1740283838866,-503.36845394,0.0001982,3]
[354143307,1740283838875,-508.03521316,0.0001982,3]
[354143308,1740283838884,-155.91990972,0.0001982,3]
[354143309,1740283838893,-621.43454546,0.0001982,3]
[354143310,1740283838903,-538.07891937,0.0001982,3]
[354143311,1740283838912,-501.13688082,0.0001982,3]
[354143312,1740283838921,-522.54110089,0.0001982,3]
[354143313,1740283838930,-498.60367234,0.0001982,3]
[354143314,1740283838939,-503.49795967,0.0001982,3]
[354143315,1740283838948,-500.38452433,0.0001982,3]
[354143316,1740283838958,-520.44347941,0.0001982,3]
[354143317,1740283838967,-500.0,0.0001982,3]
[354143318,1740283838976,-502.23047947,0.0001982,3]
[354143319,1740283838985,-513.0191566,0.0001982,3]
[354143320,1740283838994,-500.67043455,0.0001982,3]
[354143321,1740283839004,-504.27778139,0.0001982,3]
[354143322,1740283839013,-501.65997338,0.0001982,3]
[354143323,1740283839022,-506.99003119,0.0001982,3]
[354143324,1740283839031,-501.27741405,0.0001982,3]
[354143325,1740283839041,-500.0,0.0001982,3]
[354143326,1740283839051,-500.0,0.0001982,3]
[354143327,1740283839059,-500.0,0.0001982,3]
[354143328,1740283839069,-519.17380612,0.0001982,3]
[354143329,1740283839078,-500.0,0.0001982,3]
[354143330,1740283839087,-500.0,0.0001982,3]
[354143331,1740283839096,-500.0,0.0001982,3]
[354143332,1740283839105,-505.73731156,0.0001982,3]
[354143333,1740283839114,-501.01815665,0.0001982,3]
[354143334,1740283839123,-500.0,0.0001982,3]
[354143335,1740283839132,-499.85382254,0.0001982,3]
[354143336,1740283839141,-504.93543629,0.0001982,3]
[354143337,1740283839150,-500.2443234,0.0001982,3]
[354143338,1740283839159,-501.63856385,0.0001982,3]
[354143339,1740283839168,-502.10914273,0.0001982,3]
[354143340,1740283839177,-503.08598663,0.0001982,3]
[354143341,1740283839186,-501.38953376,0.0001982,3]
[354143342,1740283839195,-500.49284727,0.0001982,3]
[354143343,1740283839204,-500.0,0.0001982,3]
[354143344,1740283839213,-500.82535291,0.0001982,3]
[354143345,1740283839222,-500.51695212,0.0001982,3]
[354143346,1740283839231,-506.58452855,0.0001982,3]
[354143347,1740283839241,-500.0,0.0001982,3]
[354143348,1740283839251,-501.9208167,0.0001982,3]
[354143349,1740283839262,-502.39165517,0.0001982,3]
[354143350,1740283839271,-500.0,0.0001982,3]
[354143351,1740283839280,-500.3539474,0.0001982,3]
[354143352,1740283839290,-500.0,0.0001982,3]
[354143353,1740283839301,-500.0,0.0001982,3]
[354143354,1740283839310,-500.0,0.0001982,3]
[354143355,1740283839320,-501.4661966,0.0001982,3]
[354143356,1740283839330,-500.0,0.0001982,3]
[354143357,1740283839339,-500.0,0.0001982,3]
[354143358,1740283839346,-500.26307717,0.0001982,3]
[354143359,1740283839355,-500.0,0.0001982,3]
[354143360,1740283839364,-500.0,0.0001982,3]
[354143361,1740283839374,-500.0,0.0001982,3]
[354143362,1740283839383,-501.65770037,0.0001982,3]
[354143363,1740283839394,-500.0,0.0001982,3]
[354143365,1740283839403,-500.0,0.0001982,3]
[354143367,1740283839412,-500.0,0.0001982,3]
[354143369,1740283839422,-502.05081839,0.0001982,3]
[354143370,1740283839431,-500.62899026,0.0001982,3]
[354143371,1740283839440,-500.0,0.0001982,3]
[354143372,1740283839449,-502.0448485,0.0001982,3]
[354143373,1740283839458,-500.0,0.0001982,3]
[354143374,1740283839467,-507.00615878,0.0001982,3]
[354143375,1740283839476,-208.11876229,0.0001982,3]
[354143377,1740283839486,-507.29437799,0.0001982,3]
[354143378,1740283839495,-500.0,0.0001982,3]
[354143379,1740283839504,-500.0,0.0001982,3]
[354143380,1740283839514,-500.0,0.0001982,3]
[354143381,1740283839525,-501.73431613,0.0001982,3]
[354143382,1740283839535,-500.0,0.0001982,3]
[354143383,1740283839546,-501.98576884,0.0001982,3]
[354143384,1740283839556,-501.4427486,0.0001982,3]
[354143385,1740283839565,-529.71539929,0.0001982,3]
[354143386,1740283839574,-504.26461529,0.0001982,3]
[354143387,1740283839584,-501.44443061,0.0001982,3]
[354143388,1740283839593,-500.0,0.0001982,3]
[354143389,1740283839603,-500.0,0.0001982,3]
[354143390,1740283839612,-502.81435655,0.0001982,3]
[354143391,1740283839621,-501.25618532,0.0001982,3]
[354143392,1740283839631,-500.0,0.0001982,3]
[354143393,1740283839640,-500.0,0.0001982,3]
[354143394,1740283839650,-500.0,0.0001982,3]
[354143395,1740283839659,-506.17214437,0.0001982,3]
[354143396,1740283839669,-500.0,0.0001982,3]
[354143397,1740283839678,-500.0,0.0001982,3]
[354143398,1740283839687,-500.0,0.0001982,3]
[354143399,1740283839697,-500.78599713,0.0001982,3]
[354143400,1740283839706,-500.0,0.0001982,3]
[354143401,1740283839715,-500.0,0.0001982,3]
[354143402,1740283839724,-501.12434155,0.0001982,3]
[354143403,1740283839734,-500.0,0.0001982,3]
[354143404,1740283839745,-500.0,0.0001982,3]
[354143405,1740283839754,-500.0,0.0001982,3]
[354143406,1740283839763,-500.0,0.0001982,3]
[354143407,1740283839773,-503.04910637,0.0001982,3]
[354143408,1740283839782,-500.0,0.0001982,3]
[354143409,1740283839793,-500.0,0.0001982,3]
[354143410,1740283839802,-500.0,0.0001982,3]
[354143411,1740283839811,-502.65682273,0.0001982,3]
[354143412,1740283839821,-500.0,0.0001982,3]
[354143413,1740283839830,-500.0,0.0001982,3]
[354143414,1740283839839,-500.0,0.0001982,3]
[354143415,1740283839849,-500.0,0.0001982,3]
[354143416,1740283839858,-500.0,0.0001982,3]
[354143417,1740283839867,-501.94467855,0.0001982,3]
[354143418,1740283839876,-500.0,0.0001982,3]
[354143419,1740283839885,-500.0,0.0001982,3]
[354143420,1740283839894,-507.97112385,0.0001982,3]
[354143421,1740283839904,-500.0,0.0001982,3]
[354143422,1740283839913,-599.72807189,0.0001982,3]
[354143423,1740283839922,-502.19788519,0.0001982,3]
[354143424,1740283839932,-500.0,0.0001982,3]
[354143425,1740283839940,-500.0,0.0001982,3]
[354143426,1740283839949,-500.0,0.0001982,3]
[354143427,1740283839959,-269.17446453,0.0001982,3]
[354143428,1740283839968,-609.21666277,0.0001982,3]
[354143429,1740283839977,-500.0,0.0001982,3]
[354143430,1740283839986,-500.0,0.0001982,3]
[354143431,1740283839996,-500.0,0.0001982,3]
[354143432,1740283840005,-500.0,0.0001982,3]
[354143433,1740283840014,-500.0,0.0001982,3]
[354143434,1740283840023,-500.0,0.0001982,3]
[354143435,1740283840032,-507.71531407,0.0001982,3]
[354143436,1740283840041,-501.49435842,0.0001982,3]
[354143437,1740283840050,-605.20452356,0.0001982,3]
[354143438,1740283840059,-521.57,0.0001982,3]
[354143439,1740283840068,-507.67756684,0.0001982,3]
[354143440,1740283840078,-500.0,0.0001982,3]
[354143441,1740283840087,-500.0,0.0001982,3]
[354143442,1740283840096,-504.55071586,0.0001982,3]
[354143443,1740283840104,-503.55808775,0.0001982,3]
[354143444,1740283840113,-501.39038721,0.0001982,3]
[354143445,1740283840123,-506.18262102,0.0001982,3]
[354143446,1740283840131,-504.77475433,0.0001982,3]
[354143447,1740283840141,-507.51121867,0.0001982,3]
[354143448,1740283840150,-501.60162459,0.0001982,3]
[354143449,1740283840162,-502.70560969,0.0001982,3]
[354143450,1740283840172,-500.0,0.0001982,3]
[354143451,1740283840182,-500.0,0.0001982,3]
[354143452,1740283840192,-501.78401421,0.0001982,3]
[354143453,1740283840203,-500.0,0.0001982,3]
[354143454,1740283840214,-500.0,0.0001982,3]
[354143455,1740283840223,-507.76841431,0.0001982,3]
[354143456,1740283840232,-500.0,0.0001982,3]
[354143457,1740283840240,-509.9817503,0.0001982,3]
[354143458,1740283840249,-500.0,0.0001982,3]
[354143459,1740283840259,-507.11249643,0.0001982,3]
[354143460,1740283840268,-504.23651571,0.0001982,3]
[354143461,1740283840277,-500.0,0.0001982,3]
[354143462,1740283840286,-501.22352025,0.0001982,3]
[354143463,1740283840295,-500.0,0.0001982,3]
[354143464,1740283840304,-500.0,0.0001982,3]
[354143465,1740283840313,-507.05777108,0.0001982,3]
[354143466,1740283840322,-500.0,0.0001982,3]
[354143467,1740283840332,-500.0,0.0001982,3]
[354143468,1740283840341,-500.0,0.0001982,3]
[354143469,1740283840350,-500.0,0.0001982,3]
[354143470,1740283840360,-574.39,0.0001982,3]
[354143471,1740283840369,-501.70562969,0.0001982,3]
[354143472,1740283840378,-500.0,0.0001982,3]
[354143473,1740283840387,-500.0,0.0001982,3]
[354143474,1740283840396,-500.0,0.0001982,3]
[354143475,1740283840405,-502.0967864,0.0001982,3]
[354143476,1740283840415,-500.9187269,0.0001982,3]
[354143477,1740283840424,-503.59292471,0.0001982,3]
[354143478,1740283840433,-511.42337314,0.0001982,3]
[354143479,1740283840442,-500.0,0.0001982,3]
[354143480,1740283840452,-501.83762521,0.0001982,3]
[354143481,1740283840460,-500.0,0.0001982,3]
[354143482,1740283840473,-500.0,0.0001982,3]
[354143483,1740283840481,-500.0,0.0001982,3]
[354143484,1740283840491,-526.14305484,0.0001982,3]
[354143485,1740283840501,-500.0,0.0001982,3]
[354143486,1740283840510,-500.0,0.0001982,3]
[354143487,1740283840519,-533.25,0.0001982,3]
[354143488,1740283840528,-500.0,0.0001982,3]
[354143489,1740283840537,-511.45854885,0.0001982,3]
[354143490,1740283840546,-572.52,0.0001982,3]
[354143491,1740283840557,-500.0,0.0001982,3]
[354143492,1740283840566,-250.21120406,0.0001982,3]
[354143493,1740283840574,-500.0,0.0001982,3]
[354143494,1740283840583,-500.0,0.0001982,3]
[354143495,1740283840592,-525.72998836,0.0001982,3]
[354143496,1740283840601,-500.0,0.0001982,3]
[354143497,1740283840610,-500.0,0.0001982,3]
[354143498,1740283840619,-500.0,0.0001982,3]
[354143499,1740283840629,-500.0,0.0001982,3]
[354143500,1740283840638,-500.0,0.0001982,3]
[354143501,1740283840646,-500.0,0.0001982,3]
[354143502,1740283840655,-502.61530587,0.0001982,3]
[354143503,1740283840663,-500.0,0.0001982,3]
[354143504,1740283840671,-500.0,0.0001982,3]
[354143505,1740283840681,-506.63858468,0.0001982,3]
[354143506,1740283840690,-500.0,0.0001982,3]
[354143507,1740283840699,-503.87752594,0.0001982,3]
[354143508,1740283840708,-500.0,0.0001982,3]
[354143509,1740283840718,-500.0,0.0001982,3]
[354143510,1740283840728,-500.0,0.0001982,3]
[354143511,1740283840740,-500.0,0.0001982,3]
[354143512,1740283840749,-500.0,0.0001982,3]
[354143513,1740283840759,-500.0,0.0001982,3]
[354143514,1740283840770,-503.83569361,0.0001982,3]
[354143515,1740283840779,-500.0,0.0001982,3]
[354143516,1740283840788,-500.0,0.0001982,3]
[354143517,1740283840797,-500.0,0.0001982,3]
[354143518,1740283840806,-509.12909425,0.0001982,3]
[354143519,1740283840817,-500.0,0.0001982,3]
[354143520,1740283840827,-506.75226403,0.0001982,3]
[354143521,1740283840836,-615.46,0.0001982,3]
[354143522,1740283840845,-505.41648189,0.0001982,3]
[354143523,1740283840855,-500.0,0.0001982,3]
[354143524,1740283840864,-500.0,0.0001982,3]
[354143525,1740283840873,-502.07303467,0.0001982,3]
[354143526,1740283840883,-500.0,0.0001982,3]
[354143527,1740283840892,-606.28,0.0001982,3]
[354143528,1740283841021,-500.0,0.0001982,3]
[354143529,1740283841048,-330.58128793,0.0001982,3]
[354143530,1740283841057,-500.0,0.0001982,3]
[354143531,1740283841067,-510.06266715,0.0001982,3]
[354143532,1740283841076,-500.0,0.0001982,3]
[354143533,1740283841085,-502.09609895,0.0001982,3]
[354143534,1740283841094,-502.72195251,0.0001982,3]
[354143535,1740283841103,-500.0,0.0001982,3]
[354143536,1740283841113,-500.0,0.0001982,3]
[354143537,1740283841122,-500.0,0.0001982,3]
[354143538,1740283841131,-562.48,0.0001982,3]
[354143539,1740283841141,-500.0,0.0001982,3]
[354143540,1740283841151,-500.0,0.0001982,3]
[354143541,1740283841160,-577.67,0.0001982,3]
[354143542,1740283841169,-501.20072894,0.0001982,3]
[354143543,1740283841179,-526.73797729,0.0001982,3]
[354143544,1740283841189,-500.0,0.0001982,3]
[354143545,1740283841199,-598.21250219,0.0001982,3]
[354143546,1740283841208,-504.31473145,0.0001982,3]
[354143547,1740283841217,-507.3872805,0.0001982,3]
[354143548,1740283841225,-500.0,0.0001982,3]
[354143549,1740283841234,-524.62,0.0001982,3]
[354143550,1740283841243,-273.62347276,0.0001982,3]
[354143551,1740283841254,-500.0,0.0001982,3]
[354143552,1740283841264,-500.31528725,0.0001982,3]